[Event "Romanian-ch Youth Open U20 2024"]
[Site "Eforie Nord"]
[Date "2024.04.18"]
[Round "8.4"]
[White "Korcsek, Alexandru-David"]
[Black "Tudoroiu, Razvan-Catalin"]
[Result "0-1"]
[ECO "B22"]
[WhiteElo "2022"]
[BlackElo "2004"]
[Annotator "TA"]
[PlyCount "46"]
[EventDate "2024.04.10"]
[EventType "swiss"]
[EventCountry "ROU"]
[SourceTitle "playchess.com"]
[Source "ChessBase"]
[SourceQuality "1"]
[TimeControl "5400+30"]

{[%evp 10,46,37,41,15,34,24,36,51,59,77,22,84,0,37,38,30,0,0,-18,-21,-22,-15,-22,-20,-60,0,-152,-105,-154,-160,-230,-229,-29978,-29979,-29979,-29979,-29996,-29997]} 1. e4 {[%emt 0:00:03]} c5 {[%emt 0:00:09]} 2. c3 {[%emt 0:00:09]} d5 {[%emt 0:00:09]} 3. exd5 {[%emt 0:00:05]} Qxd5 {[%emt 0:00:04]} 4. d4 {[%emt 0:00:06]} Nc6 {[%emt 0:00:18]} 5. Nf3 {[%emt 0:00:05]} Bf5 {[%emt 0:00:08]} 6. Be3 {[%emt 0:00:05]} Nf6 {[%emt 0:00:07]} 7. Na3 {[%emt 0:00:05] Black must now prevent Bc4.} cxd4 {[%emt 0:00:04]} 8. Bc4 {[%emt 0:00:47]} Qd7 {[%emt 0:03:05] White is slightly better.} 9. Nxd4 {[%emt 0:02:36]} Be4 {[%emt 0:05:09]} 10. Qb3 {[%emt 0:12:30]} (10. Ndb5 $16 {And now Qxd7+ would win.} a6 11. Qxd7+ Kxd7 12. Rd1+ Kc8 13. Nd4 Bxg2 14. Rg1) 10... e6 {[%emt 0:00:39]} (10... Bd5 $11) 11. O-O-O {[%emt 0:02:12]} (11. Nxe6 $1 $16 Bxa3 (11... fxe6 12. Bxe6 Qe7 13. O-O-O $18) 12. Nxg7+ Kf8 13. Bh6 (13. Qxa3+ $2 Kxg7 14. Qc5 Qf5 $19)) 11... Bd5 {[%emt 0:00:21]} 12. Bxd5 {[%emt 0:03:36]} Nxd5 {[%emt 0:05:28]} 13. Nxc6 {[%emt 0:08:37]} Qxc6 {[%emt 0:01:09]} 14. Bd4 {[%emt 0:02:47]} Bxa3 {[%emt 0:08:32]} 15. Qxa3 {[%emt 0:00:11]} f6 {[%emt 0:00:05]} 16. Rhe1 {[%emt 0:06:33]} ({Reject} 16. Bxa7 b6 17. Rxd5 Qxd5 $17) (16. Qc5 {simplifies} Qxc5 17. Bxc5 b6 18. Be3) 16... Kf7 {[%emt 0:04:05]} (16... a5 {simplifies} 17. Qc5 Qxc5 18. Bxc5 Kf7) 17. g4 {[%emt 0:04:46]} (17. Qc5 {simplifies} Qxc5 18. Bxc5 Rhc8 19. Be3) 17... Rhc8 {[%emt 0:05:35]} (17... a5 $15) 18. h4 $2 {[%emt 0:04:15]} ({White should try} 18. g5 $11) 18... b5 $1 $17 {[%emt 0:01:26]} 19. Kb1 {[%emt 0:00:34][%cal Og4g5] [#]} a5 $1 {[%emt 0:02:43] ...b4 would now be deadly.} 20. g5 {[%emt 0:12:19] [#]} (20. Rc1 $17) 20... b4 $1 $19 {[%emt 0:04:19]} 21. cxb4 {[%emt 0:01:34]} (21. Qb3 $19 bxc3 22. Rc1) 21... Qc2+ {[%emt 0:00:09] Black mates.} 22. Ka1 {[%emt 0:00:03]} axb4 {[%emt 0:00:04]} (22... Nxb4 23. Qf3 Qa4 24. a3 Nc2+ 25. Ka2 Nxe1 (25... Nxd4 26. Qb7+ Kf8 27. gxf6 $11) 26. Qb7+ Kg8 27. gxf6 Qc4+ (27... Qxd1 28. Qxg7#) 28. Kb1 $15) 23. Qd3 {[%emt 0:00:21] [#]} Rxa2+ $3 {[%emt 0:00:24][%mdl 512] Weighted Error Value: White=0.63/Black=0.12 (very precise) .  Mistake:       	White=5     	Black=2      Inaccurate:     	White=2     	Black=1      OK:         	White=4     	Black=3      Best:        	White=1     	Black=1      Strong:       	---       	Black=3} 0-1

[Event "Romanian-ch Youth Open U20 2024"]
[Site "Eforie Nord"]
[Date "2024.04.19"]
[Round "9.1"]
[White "Antal, Hunor-Zoltan"]
[Black "Tudor, Henry Edward"]
[Result "0-1"]
[ECO "E52"]
[WhiteElo "2301"]
[BlackElo "2279"]
[Annotator "TA"]
[PlyCount "100"]
[EventDate "2024.04.10"]
[EventType "swiss"]
[EventCountry "ROU"]
[SourceTitle "playchess.com"]
[Source "ChessBase"]
[SourceQuality "1"]
[TimeControl "5400+30"]

{[%evp 28,100,0,0,19,13,47,-81,-73,-72,0,0,0,0,-13,-186,-153,-177,0,0,0,0,24,-183,-167,-310,-180,-185,-170,-261,-175,-163,-165,-183,-184,-263,-166,-272,-238,-443,-431,-647,-639,-748,-722,-705,-700,-877,-876,-860,-523,-961,-925,-889,-875,-950,-811,-1049,-1049,-5598,-5431,-11188,-6712,-5297,-6087,-29964,-11808,-29980,-29981,-29981,-29982,-29982,-29983,-29987,-29988]} 1. d4 {[%emt 0:00:28]} Nf6 {[%emt 0:00:07]} 2. c4 {[%emt 0:00:15]} e6 {[%emt 0:00:10]} 3. Nc3 {[%emt 0:00:06]} Bb4 {[%emt 0:00:10]} 4. Bd2 {[%emt 0:00:09]} O-O {[%emt 0:04:27]} 5. Nf3 {[%emt 0:00:30]} d5 {[%emt 0:04:11]} 6. e3 {[%emt 0:01:01]} b6 {[%emt 0:05:53]} 7. cxd5 {[%emt 0:00:12]} exd5 {[%emt 0:00:12]} 8. Bd3 {[%emt 0:00:10]} Bb7 {[%emt 0:11:07]} 9. O-O {[%emt 0:00:14]} a6 {[%emt 0:12:56]} 10. Ne5 {[%emt 0:00:22] E52: Nimzo-Indian: Rubinstein: 4...0-0 5 Nf3 d5 6 Bd3 b6.} Bd6 {[%emt 0:00:28]} 11. f4 {[%emt 0:01:27]} c5 {[%emt 0:04:24]} 12. Be1 {[%emt 1:31:36]} Nc6 {[%emt 0:16:19]} 13. Ne2 $146 {[%emt 0:00:00]} ({Predecessor:} 13. Bf2 b5 14. Rc1 c4 15. Bb1 b4 16. Ne2 a5 17. Bh4 Be7 18. Ng3 Ne8 19. Bxe7 Nxe7 {0-1 Braun,A (2594)-Engel,L (2557) German Masters 2022 (7)}) 13... c4 {[%emt 0:07:22]} 14. Bc2 {[%emt 0:00:00]} b5 {[%emt 0:06:25]} 15. Bh4 {[%emt 0:00:00]} Be7 $1 {[%emt 0:01:39]} 16. Ng3 {[%emt 0:00:00]} g6 {[%emt 0:00:02] [#]} (16... Ne8 $5 17. Qh5 g6 18. Bxe7 Qxe7 $11) 17. Nf5 {[%emt 0:00:00]} (17. Bg5 $1 $14 {stays ahead.}) 17... gxf5 $17 {[%emt 0:05:20]} 18. Bxf5 {[%emt 0:00:00]} h6 {[%emt 0:00:05]} (18... Qd6 $1 $17 {aiming for ...Bc8.} 19. Rf3 Bc8 20. Bxc8 Raxc8) 19. Rf3 $1 $11 {[%emt 0:00:00]} Nh5 $1 {[%emt 0:03:36]} (19... Ne4 20. Rh3 Bxh4 21. Qg4+ Bg5 22. Nxc6 Bxc6 23. Rxh6 $18) 20. Rh3 $1 {[%emt 0:00:00]} Ng7 {[%emt 0:00:18]} 21. Qg4 $2 {[%emt 0:00:00]} (21. Bf6 $1 $11 {and White is okay.} Bxf6 22. Bh7+ Kxh7 23. Qc2+ Kg8 24. Rxh6) 21... Bxh4 $19 {[%emt 0:02:55]} 22. Rxh4 {[%emt 0:00:00]} Qf6 $2 {[%emt 0:00:14]} ({Better is} 22... Nxe5 $19 23. fxe5 Bc8 (23... Qg5 24. Bh7+ Kh8 25. Qxg5 $19) 24. Bxc8 Qxc8) 23. Qg3 $1 $11 {[%emt 0:00:00]} Nxe5 {[%emt 0:05:04]} (23... Qxf5 $2 24. Ng4 Rfd8 (24... Qg6 $2 25. Nxh6+ $18) 25. Nxh6+ Kf8 26. Nxf5 Nxf5 27. Rh8+ Ke7 28. Qg5+ Ke6 29. Rh7 $18) 24. fxe5 {[%emt 0:00:00]} Qg5 {[%emt 0:02:04]} 25. Rg4 $2 {[%emt 0:00:00]} (25. Bh7+ $1 $11 Kh8 26. Bc2 Qxg3 27. Rxh6+ Kg8 28. Bh7+ Kh8 29. Be4+ Kg8 30. Bh7+ Kh8 31. Bc2+ Kg8 32. Bh7+) 25... Qxf5 $19 {[%emt 0:00:01]} 26. Rxg7+ {[%emt 0:00:00]} Kh8 {[%emt 0:00:02]} 27. Rf1 {[%emt 0:00:00] [#]} Qh5 $1 {[%emt 0:00:02]} 28. h3 {[%emt 0:02:43]} (28. Rg4 $142 Rg8 29. h3 Rxg4 30. hxg4) 28... Rg8 {[%emt 0:01:28]} 29. Rg4 {[%emt 0:00:05]} (29. Rfxf7 $2 Qxf7 30. Rxf7 Rxg3 $19) 29... Rxg4 {[%emt 0:05:16]} 30. hxg4 {[%emt 0:00:07] [#]} Rg8 $1 {[%emt 0:00:53]} 31. Rf4 {[%emt 0:01:51]} (31. gxh5 $142 Rxg3 32. Rxf7) 31... Rg7 {[%emt 0:01:20]} 32. Qf2 {[%emt 0:01:03]} (32. gxh5 $142 Rxg3 33. Rxf7) 32... Qg6 $19 {[%emt 0:00:26]} (32... Rxg4 33. Rxf7 Rg7 34. Rxg7 Kxg7 (34... Qd1+ 35. Kh2 $11) 35. Qf6+ Kh7 36. Qe7+ Kg8 37. Qd8+ (37. Qxb7 Qd1+ 38. Kh2 Qh5+ 39. Kg1 Qd1+ 40. Kh2 Qh5+ 41. Kg3 Qg6+ 42. Kh2 Qh5+ $11) 37... Kg7 38. Qf6+ Kg8 39. Qd8+ Kg7 40. Qd7+ Kg8 (40... Qf7 $2 41. e6 $18) 41. Qxb7 Qd1+ 42. Kf2 Qc2+ (42... Qd2+ 43. Kf3 $16) 43. Kf3 Qf5+ 44. Kg3 Qg6+ 45. Kh2 Qh5+ 46. Kg3 Qg6+ 47. Kh2 Qh5+ 48. Kg3 Qg6+ $11) 33. Rf6 $2 {[%emt 0:01:41]} (33. Qh4 Qg5 34. Qxg5 hxg5 35. Rf6) 33... Qxg4 $19 {[%emt 0:00:06]} 34. Rb6 {[%emt 0:01:36]} (34. Rxh6+ $142 Kg8 35. e6 fxe6 36. Rf6) 34... Bc8 $19 {[%emt 0:00:47]} 35. Rxh6+ {[%emt 0:00:09]} Kg8 {[%emt 0:00:00]} 36. Rh4 {[%emt 0:02:12]} Qf5 {[%emt 0:00:38]} 37. Qe2 {[%emt 0:00:18]} Qb1+ {[%emt 0:00:16]} 38. Kh2 {[%emt 0:00:40]} Be6 {[%emt 0:00:11]} (38... Qxa2 $2 {is the wrong capture.} 39. Qh5 Kf8 40. Qh8+ Rg8 41. Qh6+ Ke7 42. Qf6+ Ke8 43. Qc6+ Kd8 44. Qxd5+ Bd7 45. Qxf7 $18) 39. Qf2 {[%emt 0:00:32]} Qg6 {[%emt 0:01:05]} ({Stronger than} 39... Qxa2 40. Qf6 Rh7 (40... Qxb2 41. Qd8#) (40... Qa5 41. Rh5 $11) 41. Qd8+ Kg7 42. Qf6+ Kg8 43. Qg5+ Kh8 44. Qd8+ Kg7 45. Qg5+ Kh8 46. Qf6+ Kg8 $11) 40. a3 {[%emt 0:00:25]} Bf5 {[%emt 0:00:24]} 41. g3 {[%emt 0:00:37]} Be4 {[%emt 0:00:33]} 42. Qf4 {[%emt 0:00:01]} Qf5 {[%emt 0:00:08]} 43. g4 {[%emt 0:00:51]} Qxf4+ {[%emt 0:00:19]} 44. exf4 {[%emt 0:00:00]} Rh7 {[%emt 0:00:08]} 45. Rxh7 {[%emt 0:00:04]} Kxh7 {[%emt 0:00:06]} 46. Kg3 {[%emt 0:00:04]} a5 {[%emt 0:00:35]} 47. Kf2 {[%emt 0:00:03]} b4 {[%emt 0:00:15]} 48. axb4 {[%emt 0:00:14]} axb4 {[%emt 0:00:02]} 49. Ke2 {[%emt 0:00:10]} c3 {[%emt 0:00:07]} 50. bxc3 {[%emt 0:00:07]} b3 {[%emt 0:00:03]} 0-1

[Event "Romanian-ch Youth Open U20 2024"]
[Site "Eforie Nord"]
[Date "2024.04.19"]
[Round "9.2"]
[White "Coca, Cristi-Iulian"]
[Black "Serban, Cristian-Stefan"]
[Result "1/2-1/2"]
[ECO "C54"]
[WhiteElo "2235"]
[BlackElo "2282"]
[Annotator "TA"]
[PlyCount "91"]
[EventDate "2024.04.10"]
[EventType "swiss"]
[EventCountry "ROU"]
[SourceTitle "playchess.com"]
[Source "ChessBase"]
[SourceQuality "1"]
[TimeControl "5400+30"]

{[%evp 9,91,26,12,13,19,2,8,0,0,0,11,0,4,0,11,0,12,10,12,8,13,12,44,29,45,45,43,32,43,0,0,0,30,18,27,29,26,36,41,19,90,97,118,65,85,73,70,78,79,60,53,54,60,35,50,39,61,31,39,35,42,40,63,23,50,47,48,36,62,25,29,27,16,14,20,0,0,0,0,0,0,0,0,0]} 1. e4 {[%emt 0:00:03]} e5 {[%emt 0:02:57]} 2. Nf3 {[%emt 0:00:08]} Nc6 {[%emt 0:00:08]} 3. Bc4 {[%emt 0:00:09]} Bc5 {[%emt 0:00:11]} 4. c3 {[%emt 0:00:27]} Nf6 {[%emt 0:00:06]} 5. d3 {[%emt 0:00:02]} a5 {[%emt 0:00:07]} 6. Nbd2 {[%emt 0:00:47]} d6 {[%emt 0:00:15]} 7. Nf1 {[%emt 0:01:20]} O-O {[%emt 0:05:25]} 8. Ng3 {[%emt 0:00:24]} Be6 {[%emt 0:11:40]} 9. Bxe6 {[%emt 0:03:48]} fxe6 {[%emt 0:00:03]} 10. O-O {[%emt 0:01:53]} Bb6 {[%emt 0:00:39]} 11. h3 {[%emt 0:08:52]} a4 {[%emt 0:09:06]} 12. Re1 {[%emt 0:05:10]} Qe8 {[%emt 0:01:58]} 13. Be3 {[%emt 0:00:49]} Bxe3 {[%emt 0:00:35]} 14. Rxe3 {[%emt 0:00:05]} Ne7 {[%emt 0:16:44]} 15. d4 {[%emt 0:02:05]} exd4 {[%emt 0:00:11]} 16. cxd4 {[%emt 0:04:38]} Nh5 {[%emt 0:01:39]} 17. Nxh5 {[%emt 0:01:55]} Qxh5 {[%emt 0:00:06]} 18. Rc1 {[%emt 0:00:53]} c6 {[%emt 0:01:48]} 19. Ne1 {[%emt 0:04:33]} Qxd1 {[%emt 0:03:22]} 20. Rxd1 {[%emt 0:00:01]} Ng6 {[%emt 0:03:30]} 21. g3 {[%emt 0:05:25]} e5 {[%emt 0:03:53]} 22. Red3 {[%emt 0:02:44]} Ra5 {[%emt 0:00:54]} 23. dxe5 {[%emt 0:09:50]} Rxe5 {[%emt 0:03:07]} 24. Rd4 {[%emt 0:11:08]} Rb5 {[%emt 0:01:06]} (24... Rfe8 $11) 25. R1d2 $16 {[%emt 0:02:27]} a3 {[%emt 0:00:13]} 26. bxa3 {[%emt 0:01:21]} (26. b3 $16) 26... Rb1 {[%emt 0:01:47]} 27. Rd1 {[%emt 0:00:16]} Rxd1 {[%emt 0:08:22]} 28. Rxd1 {[%emt 0:00:09][%mdl 4096] Endgame. KRN-KRN} Rd8 {[%emt 0:02:17]} 29. f4 {[%emt 0:04:28] Repels Ne5} Re8 {[%emt 0:06:21]} 30. Rxd6 {[%emt 0:01:42]} Rxe4 {[%emt 0:00:06]} 31. Kf2 {[%emt 0:00:46]} Nf8 {[%emt 0:02:03]} 32. Nf3 {[%emt 0:09:15]} Re8 {[%emt 0:00:38] Against Rd8} 33. f5 {[%emt 0:02:16]} Ra8 {[%emt 0:02:39]} 34. Rd3 {[%emt 0:00:54]} g6 {[%emt 0:00:12]} 35. fxg6 {[%emt 0:03:03]} hxg6 {[%emt 0:00:31]} 36. Rb3 {[%emt 0:00:42]} Ra7 {[%emt 0:00:31]} 37. Ne5 {[%emt 0:00:25]} Kg7 {[%emt 0:01:22]} 38. Rf3 {[%emt 0:04:34]} Ra5 {[%emt 0:00:44]} 39. Nc4 {[%emt 0:01:20] White is more active.} Rc5 {[%emt 0:02:33]} 40. Nd6 {[%emt 0:01:41]} Rc2+ {[%emt 0:00:20]} 41. Kf1 {[%emt 0:02:16] The position is equal.} b5 {[%emt 0:01:21]} 42. Ne8+ {[%emt 0:02:43]} Kg8 {[%emt 0:00:14]} 43. Nf6+ {[%emt 0:00:05]} Kg7 {[%emt 0:00:15]} 44. Ne8+ {[%emt 0:00:58]} Kg8 {[%emt 0:00:09]} 45. Nf6+ {[%emt 0:00:09]} Kg7 {[%emt 0:00:10]} 46. Ne8+ {[%emt 0:00:23] Weighted Error Value: White=0.10 (very precise) /Black=0.10 (very precise) .  Mistake:       	White=1     	Black=1      Inaccurate:     	White=4     	Black=4      OK:         	White=11    	Black=17     Best:        	---       	Black=2} 1/2-1/2

[Event "Romanian-ch Youth Open U20 2024"]
[Site "Eforie Nord"]
[Date "2024.04.19"]
[Round "9.3"]
[White "Tudoroiu, Razvan-Catalin"]
[Black "Mazilu, Stefan Fabian"]
[Result "0-1"]
[ECO "A48"]
[WhiteElo "2004"]
[BlackElo "1994"]
[Annotator "TA"]
[PlyCount "117"]
[EventDate "2024.04.10"]
[EventType "swiss"]
[EventCountry "ROU"]
[SourceTitle "playchess.com"]
[Source "ChessBase"]
[SourceQuality "1"]
[TimeControl "5400+30"]

{[%evp 14,117,-7,-18,-30,-23,-29,-36,-31,-26,-33,-44,-19,-42,-17,-21,-31,-33,-25,-35,-16,-19,-14,-27,-29,-80,-58,-62,-15,-29,-21,-62,-56,-64,-98,-87,-24,-79,-17,-95,-79,-112,-108,-204,-204,-220,-194,-197,-143,-137,-132,-176,0,-166,-159,-188,-148,-158,-68,-85,-81,-266,-245,-259,-258,-272,-109,-127,0,-238,-223,-273,-233,-163,-47,-105,-111,-138,-135,-119,-90,-210,-222,-179,-185,-412,-415,-495,-527,-579,-582,-575,-575,-525,-418,-404,-355,-1035,-620,-612,-583,-29980,-29981,-29981,-29982,-29985]} 1. d4 {[%emt 0:00:22]} Nf6 {[%emt 0:01:06]} 2. Bf4 {[%emt 0:00:24]} g6 {[%emt 0:00:07]} 3. e3 {[%emt 0:01:13]} Bg7 {[%emt 0:00:07]} 4. Nf3 {[%emt 0:02:28]} O-O {[%emt 0:00:09]} 5. h3 {[%emt 0:00:07]} d6 {[%emt 0:00:07]} 6. Be2 {[%emt 0:00:56]} b6 {[%emt 0:00:06]} 7. O-O {[%emt 0:00:29]} Bb7 {[%emt 0:00:07]} 8. c4 {[%emt 0:00:20]} Ne4 {[%emt 0:01:39]} 9. Nfd2 {[%emt 0:02:25]} e5 {[%emt 0:10:59]} 10. dxe5 {[%emt 0:00:13]} dxe5 {[%emt 0:00:05] Black is slightly better.} 11. Bh2 {[%emt 0:00:04]} Nxd2 {[%emt 0:10:37]} 12. Nxd2 {[%emt 0:00:49][%cal Oc4c5]} Qe7 {[%emt 0:00:59]} 13. Qc2 {[%emt 0:01:45]} Nd7 {[%emt 0:08:55]} 14. Rad1 {[%emt 0:00:55]} f5 {[%emt 0:09:17]} 15. Rfe1 {[%emt 0:03:32]} Rad8 {[%emt 0:01:39]} 16. Nb1 {[%emt 0:00:14]} Be4 {[%emt 0:04:35]} 17. Qc1 {[%emt 0:02:08]} Qg5 {[%emt 0:06:41]} 18. Bf1 {[%emt 0:06:30]} Nc5 {[%emt 0:04:59] Threatens to win with ...Nd3.} 19. f4 {[%emt 0:11:24]} (19. Rxd8 $11 Rxd8 20. Nc3) 19... Qe7 {[%emt 0:03:04]} 20. Nc3 {[%emt 0:00:48]} c6 {[%emt 0:12:16]} (20... exf4 $15 21. Bxf4 c6) 21. Rxd8 {[%emt 0:05:47]} (21. fxe5 {looks sharper.} Bxe5 22. Bxe5 Qxe5 23. Rxd8 Rxd8 24. Rd1) 21... Rxd8 {[%emt 0:00:12]} 22. Rd1 {[%emt 0:02:04]} exf4 {[%emt 0:02:55]} 23. Rxd8+ {[%emt 0:06:20]} Qxd8 {[%emt 0:00:07]} 24. Bxf4 {[%emt 0:00:05]} a5 {[%emt 0:03:05]} (24... Bd3 $17 25. Ne2 a5) 25. Qe1 {[%emt 0:09:30]} (25. Nxe4 $11 {keeps the balance.} Nxe4 26. Be2) 25... Bf6 {[%emt 0:01:23]} ({Better is} 25... Bd3 $17 {With the idea ...Bxf1.} 26. Bxd3 Qxd3) 26. Bg3 {[%emt 0:02:33]} (26. Nxe4 $11 Nxe4 27. Qe2) 26... a4 {[%emt 0:01:36]} 27. a3 {[%emt 0:00:31]} Kf7 {[%emt 0:01:26]} 28. Kh2 {[%emt 0:02:04]} (28. Be2 $17) 28... Bd3 $19 {[%emt 0:02:22] White is weak on the light squares} 29. Qd1 {[%emt 0:17:49]} Bxf1 {[%emt 0:05:59]} 30. Qxf1 {[%emt 0:00:09]} Bxc3 {[%emt 0:00:27]} (30... h5 $19 31. Be1 h4) 31. bxc3 {[%emt 0:00:02][%mdl 4096] Endgame. KQB-KQN} Ne4 {[%emt 0:00:27][%cal Of7e6]} 32. Qf4 {[%emt 0:03:38]} Nxc3 $2 {[%emt 0:01:53]} (32... h5 $19 {Strongly threatening ...h4.} 33. c5 b5 (33... Nxc3 34. Bh4 $16) (33... Nxc5 34. Qc4+ Qd5 35. Qf4 $17) (33... bxc5 34. c4 $17)) 33. Bh4 $2 {[%emt 0:00:13]} (33. Qh6 $1 $11 {and White has nothing to worry.} Qg8 34. Qf4) 33... Qd7 {[%emt 0:00:25]} 34. Qe5 {[%emt 0:03:17]} Ne4 {[%emt 0:00:40]} 35. Qh8 {[%emt 0:00:02]} Ke6 {[%emt 0:00:18]} ({Black should play} 35... Qd6+ $17 36. Kg1 Qf8 (36... Qxa3 37. Qxh7+ Kf8 38. Qh8+ Kf7 39. Qh7+ Kf8 40. Qh6+ Kf7 41. Qh7+ $11) 37. Qxh7+ Qg7 38. Qxg7+ Kxg7) 36. Qg8+ {[%emt 0:00:38]} Kd6 $1 {[%emt 0:00:44]} 37. Qf8+ $2 {[%emt 0:02:23]} (37. Qa8 $17) 37... Kc7 {[%emt 0:01:09]} 38. Qa8 {[%emt 0:00:53]} Qd6+ {[%emt 0:01:35]} 39. Kg1 {[%emt 0:00:16]} Qd1+ {[%emt 0:02:37]} (39... Qxa3 40. Qa7+ Kc8 41. Qa8+ Kc7 42. Qa7+ Kc8 43. Qa8+ Kc7 $11) (39... g5 $1 $19 {[%cal Rg5h4]} 40. Qa7+ Kc8 41. Qxh7 Qd1+ (41... gxh4 42. Qxf5+ Kb8 43. Qxe4 $11) 42. Kh2 Qd7 (42... gxh4 $2 43. Qxf5+ Kc7 44. Qxe4 $17) 43. Qg8+ Kb7 (43... Qd8 44. Qe6+ Kc7 45. Qxf5 $19) 44. Bxg5 Nxg5 45. Qxg5 Qd6+ 46. Kh1 Qxa3 47. Qg7+ Ka6) 40. Kh2 $17 {[%emt 0:00:05]} Qd6+ {[%emt 0:01:11]} (40... g5 $1 $17 {[%cal Rg5h4]} 41. Qa7+ Kc8 42. Qa6+ Kd7 43. Qb7+ Ke6) 41. Kg1 $19 {[%emt 0:00:08] [#]} g5 $1 {[%emt 0:00:47]} (41... Qxa3 42. Qa7+ Kc8 43. Qa8+ Kc7 44. Qa7+ Kc8 45. Qa8+ Kc7 $11) 42. Qa7+ {[%emt 0:02:15]} Kc8 {[%emt 0:00:11]} 43. Qxh7 {[%emt 0:00:50] [#]} Qe6 {[%emt 0:01:41]} (43... gxh4 $6 44. Qxf5+ Kb7 45. Qh7+ Ka6 46. Qxe4 $11) (43... Qd1+ $1 $19 44. Kh2 Qd6+ (44... gxh4 $2 45. Qxf5+ Kc7 46. Qxe4 $19) 45. Kg1 Qe6 (45... gxh4 46. Qxf5+ Kb7 47. Qh7+ Ka6 48. Qxe4 $11) 46. Qh8+ Kb7 47. Qg7+ Ka6) 44. Be1 {[%emt 0:02:18]} ({White should try} 44. Qh8+ $15 Kb7 45. Qg7+ Ka6 46. Qf8 Qxc4 (46... gxh4 47. Qa8#) 47. Qc8+ Ka7 48. Qd7+ Kb8 49. Qd8+ Kb7 50. Qd7+ Ka6 51. Qc8+ Ka7 52. Qc7+ Ka6 53. Qc8+) 44... Qd7 $36 {[%emt 0:00:13][%mdl 2048] White is under strong pressure.} ({Much worse is} 44... Qxc4 $6 45. Qxf5+ Kb7 46. Qd7+ Ka6 47. Kh2 $11) 45. Qg6 {[%emt 0:02:14]} Kb7 {[%emt 0:00:20]} 46. Qh5 {[%emt 0:02:22] Repels Qd1} Qe6 {[%emt 0:00:21]} 47. Qf3 {[%emt 0:01:40]} (47. Qh8 $17) 47... Nd6 $19 {[%emt 0:00:23]} (47... Qxc4 48. Qxf5 Qd3 49. Qf7+ Ka6 50. Qf1 $11) 48. c5 {[%emt 0:01:44]} bxc5 {[%emt 0:00:04] ...Nb5 would now be deadly.} 49. Qe2 {[%emt 0:00:01]} (49. Qd1 {was necessary.}) 49... Nb5 {[%emt 0:00:23]} 50. Kf2 {[%emt 0:01:41]} Nxa3 {[%emt 0:00:49]} 51. Qb2+ {[%emt 0:00:13]} Nb5 {[%emt 0:00:03]} 52. Qg7+ {[%emt 0:00:04]} Ka6 {[%emt 0:00:09] ...Qa2+ is the strong threat.} 53. Qf8 {[%emt 0:00:19]} Qd7 {[%emt 0:02:11] Dodges Qd8} 54. Qxc5 {[%emt 0:00:24]} a3 {[%emt 0:00:15] Hoping for ...a2.} 55. Qb4 $2 {[%emt 0:00:05]} (55. Bc3 Qd6 56. Qxd6 Nxd6 57. Ke2) 55... Qd5 {[%emt 0:00:35]} 56. Qf8 {[%emt 0:02:35]} a2 {[%emt 0:00:46]} 57. Qc8+ {[%emt 0:00:56]} Ka7 {[%emt 0:00:05]} 58. Qh8 {[%emt 0:00:31]} Qd1 {[%emt 0:00:44] Active counter play!} 59. Bb4 {[%emt 0:02:15] Weighted Error Value: White=0.52/Black=0.40.  Loses game:     	White=2     	---        Missed win:     	---       	Black=2      Mistake:       	White=8     	Black=7      Inaccurate:     	White=2     	Black=1      OK:         	White=15    	Black=17     Best:        	White=6     	Black=3      Strong:       	---       	Black=2} 0-1